[Event "*** SCC Grand Prix: Titled Tuesday Blitz"]
[Site "Chess.com"]
[Date "2020.10.13"]
[Round "7"]
[White "natelleka"]
[Black "Evachess2006"]
[Result "1-0"]
[WhiteElo "2174"]
[BlackElo "1618"]
[TimeControl "180+1"]
[EndTime "11:15:19 PDT"]
[Termination "natelleka won by checkmate"]

1. e4 {[%clk 0:02:59.8]} 1... e5 {[%clk 0:02:56.6]} 2. Nf3 {[%clk 0:02:57.8]}
2... Nc6 {[%clk 0:02:45.4]} 3. Bb5 {[%clk 0:02:56.9]} 3... a6 {[%clk 0:02:38.5]}
4. Ba4 {[%clk 0:02:57.1]} 4... Nf6 {[%clk 0:02:37.7]} 5. O-O {[%clk 0:02:57.5]}
5... b5 {[%clk 0:02:33.6]} 6. Bb3 {[%clk 0:02:56.2]} 6... Be7 {[%clk 0:02:31]}
7. d4 {[%clk 0:02:54.2]} 7... exd4 {[%clk 0:02:27.3]} 8. e5 {[%clk 0:02:51.3]}
8... Ng4 {[%clk 0:02:23.4]} 9. Re1 {[%clk 0:02:51.1]} 9... O-O {[%clk
0:02:21.5]} 10. h3 {[%clk 0:02:50.4]} 10... Nh6 {[%clk 0:01:33.7]} 11. Bxh6
{[%clk 0:02:49.6]} 11... gxh6 {[%clk 0:01:34.6]} 12. c3 {[%clk 0:02:49.7]} 12...
dxc3 {[%clk 0:01:33]} 13. Nxc3 {[%clk 0:02:48.1]} 13... Kh8 {[%clk 0:01:30.3]}
14. Qd2 {[%clk 0:02:44]} 14... Rg8 {[%clk 0:01:27.5]} 15. Bxf7 {[%clk
0:02:42.5]} 15... Rg7 {[%clk 0:01:24.4]} 16. Bb3 {[%clk 0:02:38.4]} 16... Bg5
{[%clk 0:01:22.5]} 17. Nxg5 {[%clk 0:02:28.6]} 17... Rxg5 {[%clk 0:01:10.1]} 18.
f4 {[%clk 0:02:27.3]} 18... Rg7 {[%clk 0:01:08.9]} 19. Rad1 {[%clk 0:02:24.2]}
19... Qh4 {[%clk 0:01:07.3]} 20. Nd5 {[%clk 0:02:18.5]} 20... Qg3 {[%clk
0:01:02.6]} 21. Re3 {[%clk 0:02:15.6]} 21... Qg6 {[%clk 0:00:57.9]} 22. Bc2
{[%clk 0:02:12.8]} 22... Qh5 {[%clk 0:00:49.8]} 23. Rf1 {[%clk 0:02:11.2]} 23...
Bb7 {[%clk 0:00:43.4]} 24. Be4 {[%clk 0:02:07.1]} 24... Rag8 {[%clk 0:00:35.8]}
25. Nxc7 {[%clk 0:02:06.1]} 25... Nxe5 {[%clk 0:00:15.6]} 26. Bxb7 {[%clk
0:02:03.4]} 26... Nc4 {[%clk 0:00:12.8]} 27. Qe2 {[%clk 0:01:59]} 27... Rxg2+
{[%clk 0:00:09.8]} 28. Bxg2 {[%clk 0:01:58.2]} 28... Rxg2+ {[%clk 0:00:04.5]}
29. Kxg2 {[%clk 0:01:57.1]} 29... Qg6+ {[%clk 0:00:04.9]} 30. Kh2 {[%clk
0:01:54.9]} 30... Nxe3 {[%clk 0:00:05.8]} 31. Qxe3 {[%clk 0:01:54.9]} 31... Qc6
{[%clk 0:00:06.3]} 32. Qe5+ {[%clk 0:01:54.3]} 32... Kg8 {[%clk 0:00:05.9]} 33.
Rg1+ {[%clk 0:01:54.4]} 33... Kf7 {[%clk 0:00:05.8]} 34. Qe8+ {[%clk 0:01:53.4]}
34... Kf6 {[%clk 0:00:04.5]} 35. Qf8# {[%clk 0:01:52.4]} 1-0

[Event "*** SCC Grand Prix: Titled Tuesday Blitz"]
[Site "Chess.com"]
[Date "2020.10.13"]
[Round "7"]
[White "jamalm2"]
[Black "icychess54"]
[Result "1-0"]
[WhiteElo "1801"]
[BlackElo "2262"]
[TimeControl "180+1"]
[EndTime "11:15:26 PDT"]
[Termination "jamalm2 won by checkmate"]

1. c4 {[%clk 0:03:00.5]} 1... c6 {[%clk 0:02:58.6]} 2. d4 {[%clk 0:02:58.6]}
2... d5 {[%clk 0:02:58.8]} 3. Nc3 {[%clk 0:02:57.8]} 3... Nf6 {[%clk 0:02:59]}
4. Nf3 {[%clk 0:02:57.5]} 4... e6 {[%clk 0:02:56.1]} 5. Bg5 {[%clk 0:02:51.5]}
5... Nbd7 {[%clk 0:02:56]} 6. e3 {[%clk 0:02:50.4]} 6... Qa5 {[%clk 0:02:56.2]}
7. Qd2 {[%clk 0:02:43.9]} 7... Bb4 {[%clk 0:02:55.9]} 8. a3 {[%clk 0:02:41]}
8... Ne4 {[%clk 0:02:48.8]} 9. axb4 {[%clk 0:02:33]} 9... Qxa1+ {[%clk
0:02:47.3]} 10. Qd1 {[%clk 0:02:32.5]} 10... Qxb2 {[%clk 0:02:41.6]} 11. Nxe4
{[%clk 0:02:31.8]} 11... dxe4 {[%clk 0:02:41.7]} 12. Nd2 {[%clk 0:02:28]} 12...
Qxb4 {[%clk 0:02:41.5]} 13. Be2 {[%clk 0:02:23.4]} 13... O-O {[%clk 0:02:40.6]}
14. O-O {[%clk 0:02:22.7]} 14... a5 {[%clk 0:02:36.1]} 15. Nxe4 {[%clk 0:02:17]}
15... a4 {[%clk 0:02:32.7]} 16. Bd3 {[%clk 0:02:06]} 16... Re8 {[%clk
0:02:14.5]} 17. Qh5 {[%clk 0:01:50.2]} 17... Nf8 {[%clk 0:02:14.3]} 18. Bf6
{[%clk 0:01:41.5]} 18... Ng6 {[%clk 0:02:08.8]} 19. Ng5 {[%clk 0:01:10.7]} 19...
h6 {[%clk 0:01:48.9]} 20. Bxg6 {[%clk 0:01:02.3]} 20... Qf8 {[%clk 0:00:22.4]}
21. Bxf7+ {[%clk 0:00:56.5]} 21... Kh8 {[%clk 0:00:22.7]} 22. Qxh6# {[%clk
0:00:54.6]} 1-0

[Event "*** SCC Grand Prix: Titled Tuesday Blitz"]
[Site "Chess.com"]
[Date "2020.10.13"]
[Round "7"]
[White "EddieMarsalla"]
[Black "karwowskikacper"]
[Result "1-0"]
[WhiteElo "2560"]
[BlackElo "2338"]
[TimeControl "180+1"]
[EndTime "11:15:27 PDT"]
[Termination "EddieMarsalla won by resignation"]

1. d4 {[%clk 0:03:00.9]} 1... Nf6 {[%clk 0:02:51.4]} 2. Bg5 {[%clk 0:03:01.3]}
2... d5 {[%clk 0:02:50.2]} 3. Nd2 {[%clk 0:03:00.7]} 3... Nbd7 {[%clk
0:02:49.7]} 4. e3 {[%clk 0:03:00.9]} 4... g6 {[%clk 0:02:49.1]} 5. f4 {[%clk
0:03:01.1]} 5... Bg7 {[%clk 0:02:49.4]} 6. Bd3 {[%clk 0:03:01.4]} 6... h5 {[%clk
0:02:32.8]} 7. Qe2 {[%clk 0:03:01.5]} 7... h4 {[%clk 0:02:25.8]} 8. Ngf3 {[%clk
0:03:01.2]} 8... h3 {[%clk 0:02:25]} 9. gxh3 {[%clk 0:03:00.7]} 9... Nf8 {[%clk
0:02:23.5]} 10. O-O-O {[%clk 0:03:00.8]} 10... Bxh3 {[%clk 0:02:22.1]} 11. Ne5
{[%clk 0:03:01]} 11... Ne6 {[%clk 0:02:20.4]} 12. Rhg1 {[%clk 0:02:59.3]} 12...
c6 {[%clk 0:02:08.6]} 13. c3 {[%clk 0:02:59.1]} 13... Qa5 {[%clk 0:02:06.1]} 14.
Kb1 {[%clk 0:02:52.7]} 14... Bf5 {[%clk 0:02:04.3]} 15. Bxf5 {[%clk 0:02:50.5]}
15... gxf5 {[%clk 0:02:05.2]} 16. Bxf6 {[%clk 0:02:40]} 16... Bxf6 {[%clk
0:02:04.4]} 17. Ndf3 {[%clk 0:02:25.9]} 17... Nf8 {[%clk 0:00:58.2]} 18. Rg2
{[%clk 0:02:21]} 18... Bxe5 {[%clk 0:00:54.5]} 19. Nxe5 {[%clk 0:02:12]} 19...
f6 {[%clk 0:00:54.8]} 20. Nd3 {[%clk 0:02:05.4]} 20... O-O-O {[%clk 0:00:53.3]}
21. Rg7 {[%clk 0:02:05.7]} 21... Qc7 {[%clk 0:00:52.5]} 22. Nc5 {[%clk
0:02:03.7]} 22... b6 {[%clk 0:00:43.5]} 23. Nd3 {[%clk 0:01:50.4]} 23... Ne6
{[%clk 0:00:40.1]} 24. Rg2 {[%clk 0:01:48.4]} 24... Rdg8 {[%clk 0:00:31.2]} 25.
Rdg1 {[%clk 0:01:48.1]} 25... Rxg2 {[%clk 0:00:28.7]} 26. Rxg2 {[%clk 0:01:49]}
26... Kb7 {[%clk 0:00:25.7]} 27. Nb4 {[%clk 0:01:48.4]} 27... a5 {[%clk
0:00:24.4]} 28. Qa6+ {[%clk 0:01:47.8]} 28... Kb8 {[%clk 0:00:24.6]} 29. Nc2
{[%clk 0:01:44.4]} 29... Qb7 {[%clk 0:00:19.3]} 30. Qd3 {[%clk 0:01:44.2]} 30...
Rh5 {[%clk 0:00:17.8]} 31. b3 {[%clk 0:01:40.3]} 31... Ka7 {[%clk 0:00:16.5]}
32. b4 {[%clk 0:01:38.8]} 32... a4 {[%clk 0:00:15.3]} 33. b5 {[%clk 0:01:38.2]}
33... c5 {[%clk 0:00:15.3]} 34. Na3 {[%clk 0:01:37.8]} 34... c4 {[%clk
0:00:15.2]} 35. Qd1 {[%clk 0:01:37.9]} 35... Qc8 {[%clk 0:00:10]} 36. Qxh5
{[%clk 0:01:37.5]} 36... Kb8 {[%clk 0:00:10.9]} 37. Qd1 {[%clk 0:01:36.5]} 1-0

[Event "*** SCC Grand Prix: Titled Tuesday Blitz"]
[Site "Chess.com"]
[Date "2020.10.13"]
[Round "7"]
[White "rugbyclub"]
[Black "ailime26"]
[Result "0-1"]
[WhiteElo "2199"]
[BlackElo "1887"]
[TimeControl "180+1"]
[EndTime "11:15:28 PDT"]
[Termination "ailime26 won by resignation"]

1. d4 {[%clk 0:02:57.7]} 1... d5 {[%clk 0:02:56.9]} 2. c4 {[%clk 0:02:43.9]}
2... c6 {[%clk 0:02:37.9]} 3. cxd5 {[%clk 0:02:39.6]} 3... cxd5 {[%clk
0:02:37.6]} 4. Nc3 {[%clk 0:02:40.3]} 4... Nc6 {[%clk 0:02:37]} 5. Bf4 {[%clk
0:02:40.2]} 5... g6 {[%clk 0:02:37]} 6. e3 {[%clk 0:02:39.6]} 6... Bg7 {[%clk
0:02:37]} 7. Nf3 {[%clk 0:02:39.8]} 7... Nf6 {[%clk 0:02:36.8]} 8. Rc1 {[%clk
0:02:39.2]} 8... O-O {[%clk 0:02:16.6]} 9. Be2 {[%clk 0:02:37.7]} 9... a6 {[%clk
0:01:40.6]} 10. h3 {[%clk 0:02:35.5]} 10... b5 {[%clk 0:01:39.9]} 11. Nxb5
{[%clk 0:02:32.5]} 11... axb5 {[%clk 0:01:39.2]} 12. Rxc6 {[%clk 0:02:31.9]}
12... Rxa2 {[%clk 0:01:37.5]} 13. O-O {[%clk 0:02:23.5]} 13... Rxb2 {[%clk
0:01:36.8]} 14. Ne5 {[%clk 0:02:09.6]} 14... b4 {[%clk 0:01:32.1]} 15. Nd3
{[%clk 0:02:08.4]} 15... Rxe2 {[%clk 0:01:25.6]} 16. Qxe2 {[%clk 0:02:07.8]}
16... Bb7 {[%clk 0:01:21.4]} 17. Rcc1 {[%clk 0:01:48]} 17... Ba6 {[%clk
0:01:18.9]} 18. Qc2 {[%clk 0:01:47.8]} 18... Ne4 {[%clk 0:01:13.4]} 19. Rfe1
{[%clk 0:01:40.4]} 19... Qb6 {[%clk 0:01:03]} 20. Qb2 {[%clk 0:01:30]} 20...
Bxd3 {[%clk 0:01:00.7]} 21. Rc7 {[%clk 0:01:24.1]} 21... e5 {[%clk 0:00:28.8]}
22. dxe5 {[%clk 0:01:21.7]} 22... Qxc7 {[%clk 0:00:27.9]} 23. Qxb4 {[%clk
0:01:22]} 23... Bxe5 {[%clk 0:00:25]} 24. Bh6 {[%clk 0:01:20.6]} 24... Bg7
{[%clk 0:00:23.2]} 25. Bf4 {[%clk 0:01:19.9]} 25... Qc2 {[%clk 0:00:22]} 26. Bg3
{[%clk 0:01:12]} 26... Nxg3 {[%clk 0:00:20.4]} 27. fxg3 {[%clk 0:01:12.1]} 27...
Be4 {[%clk 0:00:20.2]} 0-1

[Event "*** SCC Grand Prix: Titled Tuesday Blitz"]
[Site "Chess.com"]
[Date "2020.10.13"]
[Round "7"]
[White "alexgo05"]
[Black "orestn"]
[Result "1-0"]
[WhiteElo "2445"]
[BlackElo "2301"]
[TimeControl "180+1"]
[EndTime "11:15:30 PDT"]
[Termination "alexgo05 won by resignation"]

1. e4 {[%clk 0:03:00.9]} 1... e5 {[%clk 0:02:59.3]} 2. Nf3 {[%clk 0:03:00.1]}
2... Nc6 {[%clk 0:03:00.2]} 3. Bb5 {[%clk 0:02:58.5]} 3... a6 {[%clk 0:03:00.5]}
4. Ba4 {[%clk 0:02:59]} 4... Nf6 {[%clk 0:03:00.8]} 5. O-O {[%clk 0:02:59.6]}
5... Be7 {[%clk 0:03:00.6]} 6. Re1 {[%clk 0:03:00.2]} 6... b5 {[%clk 0:03:00.9]}
7. Bb3 {[%clk 0:03:00.7]} 7... d6 {[%clk 0:03:01.5]} 8. c3 {[%clk 0:03:01.1]}
8... O-O {[%clk 0:03:01.2]} 9. d4 {[%clk 0:03:01.7]} 9... Bg4 {[%clk 0:03:00]}
10. d5 {[%clk 0:03:02.1]} 10... Na5 {[%clk 0:02:59.6]} 11. Bc2 {[%clk
0:03:02.6]} 11... c6 {[%clk 0:02:55.7]} 12. dxc6 {[%clk 0:02:54.5]} 12... Qc7
{[%clk 0:02:54.9]} 13. h3 {[%clk 0:02:53.5]} 13... Bc8 {[%clk 0:02:50.8]} 14.
Nbd2 {[%clk 0:02:51.3]} 14... Qxc6 {[%clk 0:02:43]} 15. Nf1 {[%clk 0:02:51.3]}
15... h6 {[%clk 0:02:39.9]} 16. Nh4 {[%clk 0:02:46.4]} 16... Re8 {[%clk
0:02:13.8]} 17. Ng3 {[%clk 0:02:25.8]} 17... Be6 {[%clk 0:01:44.8]} 18. Ngf5
{[%clk 0:02:06.7]} 18... d5 {[%clk 0:01:33.6]} 19. exd5 {[%clk 0:02:00.4]} 19...
Bxd5 {[%clk 0:01:31.2]} 20. Nxe7+ {[%clk 0:02:00.3]} 20... Rxe7 {[%clk
0:01:30.4]} 21. Qd3 {[%clk 0:01:27]} 21... e4 {[%clk 0:00:27.3]} 22. Qg3 {[%clk
0:01:25.4]} 22... Nh5 {[%clk 0:00:18.3]} 23. Nf5 {[%clk 0:01:25.5]} 23... Re6
{[%clk 0:00:12.7]} 24. Qg4 {[%clk 0:01:24.4]} 24... g6 {[%clk 0:00:08.5]} 25.
Nd4 {[%clk 0:01:20]} 25... Qb6 {[%clk 0:00:06.1]} 26. Nxe6 {[%clk 0:01:18.8]}
26... Qxe6 {[%clk 0:00:06.6]} 27. Qxe6 {[%clk 0:01:18.1]} 27... Bxe6 {[%clk
0:00:06.5]} 28. Bxh6 {[%clk 0:01:18.6]} 28... Rd8 {[%clk 0:00:07]} 29. Rad1
{[%clk 0:01:17]} 29... Nc4 {[%clk 0:00:07.9]} 30. Rxd8+ {[%clk 0:01:16.2]} 1-0

[Event "*** SCC Grand Prix: Titled Tuesday Blitz"]
[Site "Chess.com"]
[Date "2020.10.13"]
[Round "7"]
[White "SilviusTiberius"]
[Black "ChelsieMonica"]
[Result "1-0"]
[WhiteElo "2594"]
[BlackElo "2384"]
[TimeControl "180+1"]
[EndTime "11:15:34 PDT"]
[Termination "SilviusTiberius won by resignation"]

1. e4 {[%clk 0:03:00.9]} 1... e6 {[%clk 0:02:56.7]} 2. d4 {[%clk 0:03:00.3]}
2... d5 {[%clk 0:02:55]} 3. Nc3 {[%clk 0:03:01.2]} 3... Bb4 {[%clk 0:02:34.9]}
4. exd5 {[%clk 0:03:00.7]} 4... exd5 {[%clk 0:02:32.7]} 5. Bd3 {[%clk
0:03:00.9]} 5... Nf6 {[%clk 0:02:31.5]} 6. Ne2 {[%clk 0:03:01]} 6... O-O {[%clk
0:02:30.2]} 7. O-O {[%clk 0:03:00.6]} 7... c6 {[%clk 0:02:26.4]} 8. a3 {[%clk
0:02:58.9]} 8... Ba5 {[%clk 0:02:25]} 9. Bg5 {[%clk 0:02:57.7]} 9... Bg4 {[%clk
0:02:23.9]} 10. f3 {[%clk 0:02:57.1]} 10... Bh5 {[%clk 0:02:22.4]} 11. Nf4
{[%clk 0:02:57.3]} 11... Bg6 {[%clk 0:02:20]} 12. Nce2 {[%clk 0:02:57.7]} 12...
Bc7 {[%clk 0:02:19.1]} 13. Qe1 {[%clk 0:02:45.9]} 13... Re8 {[%clk 0:02:17.2]}
14. Qd2 {[%clk 0:02:11.2]} 14... Bxd3 {[%clk 0:02:08.1]} 15. Nxd3 {[%clk
0:02:09]} 15... h6 {[%clk 0:02:05.2]} 16. Bf4 {[%clk 0:01:56.5]} 16... Nbd7
{[%clk 0:02:01.2]} 17. g4 {[%clk 0:01:54.1]} 17... Nf8 {[%clk 0:01:56]} 18. Ng3
{[%clk 0:01:50.9]} 18... Ng6 {[%clk 0:01:53.1]} 19. Bxc7 {[%clk 0:01:50.2]}
19... Qxc7 {[%clk 0:01:54]} 20. Rae1 {[%clk 0:01:47]} 20... Nh4 {[%clk
0:01:50.1]} 21. Ne5 {[%clk 0:01:42.2]} 21... Nd7 {[%clk 0:01:43.7]} 22. f4
{[%clk 0:01:27.9]} 22... f6 {[%clk 0:01:36.7]} 23. Nxd7 {[%clk 0:01:26.2]} 23...
Qxd7 {[%clk 0:01:36.4]} 24. f5 {[%clk 0:01:24.8]} 24... g5 {[%clk 0:01:06.9]}
25. Nh5 {[%clk 0:01:18]} 25... Kf7 {[%clk 0:01:02.8]} 26. Re6 {[%clk 0:01:14.2]}
26... Rxe6 {[%clk 0:00:55.3]} 27. fxe6+ {[%clk 0:01:14.2]} 27... Qxe6 {[%clk
0:00:51.6]} 28. Nxf6 {[%clk 0:01:13.5]} 28... Kg6 {[%clk 0:00:44.3]} 29. Qd3+
{[%clk 0:01:12.7]} 29... Nf5 {[%clk 0:00:20.2]} 30. gxf5+ {[%clk 0:01:11]} 1-0

[Event "*** SCC Grand Prix: Titled Tuesday Blitz"]
[Site "Chess.com"]
[Date "2020.10.13"]
[Round "7"]
[White "Margency"]
[Black "NiranjanNavalgund"]
[Result "1-0"]
[WhiteElo "2609"]
[BlackElo "2440"]
[TimeControl "180+1"]
[EndTime "11:15:35 PDT"]
[Termination "Margency won by resignation"]

1. e4 {[%clk 0:03:00.9]} 1... c5 {[%clk 0:02:59.3]} 2. Nf3 {[%clk 0:03:01.1]}
2... Nc6 {[%clk 0:02:59.1]} 3. d4 {[%clk 0:03:01.6]} 3... cxd4 {[%clk 0:03:00]}
4. Nxd4 {[%clk 0:03:02.5]} 4... g6 {[%clk 0:03:00.5]} 5. c4 {[%clk 0:03:02.1]}
5... Nf6 {[%clk 0:02:59.3]} 6. Nc3 {[%clk 0:03:02.1]} 6... Nxd4 {[%clk
0:02:59.4]} 7. Qxd4 {[%clk 0:03:03]} 7... d6 {[%clk 0:02:59.8]} 8. Bg5 {[%clk
0:03:03.3]} 8... Bg7 {[%clk 0:03:00.1]} 9. Be2 {[%clk 0:03:03.2]} 9... O-O
{[%clk 0:03:00.1]} 10. Qd2 {[%clk 0:03:03.4]} 10... Qa5 {[%clk 0:02:59.5]} 11.
Rc1 {[%clk 0:03:02.1]} 11... Be6 {[%clk 0:02:59.7]} 12. b3 {[%clk 0:02:58]}
12... Rfc8 {[%clk 0:02:59.6]} 13. f3 {[%clk 0:02:54.8]} 13... Qd8 {[%clk
0:02:56.9]} 14. O-O {[%clk 0:02:42.8]} 14... Qf8 {[%clk 0:02:49.4]} 15. Rfd1
{[%clk 0:02:39.8]} 15... h6 {[%clk 0:02:48.6]} 16. Be3 {[%clk 0:02:39.9]} 16...
Kh7 {[%clk 0:02:48.7]} 17. f4 {[%clk 0:01:52.5]} 17... Ng4 {[%clk 0:02:33.8]}
18. Bxg4 {[%clk 0:01:40.3]} 18... Bxg4 {[%clk 0:02:30.1]} 19. Rf1 {[%clk
0:01:40.8]} 19... Bd7 {[%clk 0:02:26.8]} 20. f5 {[%clk 0:01:37.8]} 20... Qe8
{[%clk 0:02:24.5]} 21. Nd5 {[%clk 0:01:36.1]} 21... Bc6 {[%clk 0:02:07.4]} 22.
Bd4 {[%clk 0:01:31.4]} 22... e5 {[%clk 0:02:04.8]} 23. fxe6 {[%clk 0:01:28.6]}
23... fxe6 {[%clk 0:02:02.9]} 24. Bxg7 {[%clk 0:01:12.1]} 24... Kxg7 {[%clk
0:02:03.8]} 25. Nf6 {[%clk 0:01:11.7]} 25... Qe7 {[%clk 0:02:01.7]} 26. e5
{[%clk 0:01:03.7]} 26... dxe5 {[%clk 0:01:59.5]} 27. Ng4 {[%clk 0:01:03.5]}
27... Qg5 {[%clk 0:01:57.2]} 28. Qxg5 {[%clk 0:01:03.1]} 28... hxg5 {[%clk
0:01:58.1]} 29. Nxe5 {[%clk 0:01:03.7]} 29... Rf8 {[%clk 0:01:57.6]} 30. Nxc6
{[%clk 0:00:42]} 30... bxc6 {[%clk 0:01:57.2]} 31. Rxf8 {[%clk 0:00:37.7]} 31...
Rxf8 {[%clk 0:01:56.5]} 32. Rd1 {[%clk 0:00:38.2]} 32... Kf6 {[%clk 0:01:45]}
33. Rf1+ {[%clk 0:00:35.2]} 33... Ke7 {[%clk 0:01:45.2]} 34. Rxf8 {[%clk
0:00:35.8]} 34... Kxf8 {[%clk 0:01:46.1]} 35. Kf2 {[%clk 0:00:36.4]} 35... Kf7
{[%clk 0:01:46.5]} 36. Ke3 {[%clk 0:00:36.6]} 36... e5 {[%clk 0:01:45.9]} 37.
Ke4 {[%clk 0:00:36.2]} 37... Ke6 {[%clk 0:01:46.2]} 38. b4 {[%clk 0:00:35.6]}
38... a6 {[%clk 0:01:41.2]} 39. g4 {[%clk 0:00:33.2]} 39... Kd6 {[%clk
0:01:39.5]} 40. a4 {[%clk 0:00:33.1]} 40... Ke6 {[%clk 0:01:38.4]} 41. b5 {[%clk
0:00:33.1]} 41... cxb5 {[%clk 0:01:35.4]} 42. cxb5 {[%clk 0:00:33.2]} 42... axb5
{[%clk 0:01:35.8]} 43. axb5 {[%clk 0:00:32.2]} 43... Kd6 {[%clk 0:01:36.3]} 44.
h3 {[%clk 0:00:28.7]} 44... Kc5 {[%clk 0:01:36]} 45. Kxe5 {[%clk 0:00:29.1]}
45... Kxb5 {[%clk 0:01:36.4]} 46. Kf6 {[%clk 0:00:29.7]} 1-0

[Event "*** SCC Grand Prix: Titled Tuesday Blitz"]
[Site "Chess.com"]
[Date "2020.10.13"]
[Round "7"]
[White "ExtremeLearner"]
[Black "Fy_Rakotomaharo"]
[Result "0-1"]
[WhiteElo "2410"]
[BlackElo "2647"]
[TimeControl "180+1"]
[EndTime "11:15:37 PDT"]
[Termination "Fy_Rakotomaharo won by resignation"]

1. d4 {[%clk 0:03:00.9]} 1... g6 {[%clk 0:03:00.9]} 2. Nf3 {[%clk 0:03:00.5]}
2... Nf6 {[%clk 0:03:01.1]} 3. g3 {[%clk 0:03:01]} 3... Bg7 {[%clk 0:03:01.4]}
4. Bg2 {[%clk 0:03:01.1]} 4... d5 {[%clk 0:03:02.3]} 5. O-O {[%clk 0:03:01.1]}
5... O-O {[%clk 0:03:03.2]} 6. c4 {[%clk 0:03:01.6]} 6... dxc4 {[%clk
0:03:03.7]} 7. Na3 {[%clk 0:03:00.6]} 7... c3 {[%clk 0:03:04.4]} 8. bxc3 {[%clk
0:02:59.5]} 8... c5 {[%clk 0:03:03.9]} 9. Nc4 {[%clk 0:02:55.2]} 9... Nd5 {[%clk
0:03:00.5]} 10. Bb2 {[%clk 0:02:52.5]} 10... Nb6 {[%clk 0:02:58.2]} 11. Nxb6
{[%clk 0:02:51]} 11... Qxb6 {[%clk 0:02:52.6]} 12. Rb1 {[%clk 0:02:50.7]} 12...
Nc6 {[%clk 0:02:51.1]} 13. e3 {[%clk 0:02:44]} 13... Bf5 {[%clk 0:02:50.7]} 14.
Ba3 {[%clk 0:02:33.9]} 14... Qxb1 {[%clk 0:02:49.9]} 15. Qxb1 {[%clk 0:02:31.8]}
15... Bxb1 {[%clk 0:02:50.8]} 16. Rxb1 {[%clk 0:02:32.3]} 16... cxd4 {[%clk
0:02:40.7]} 17. Nxd4 {[%clk 0:02:25.5]} 17... Rfc8 {[%clk 0:02:28.9]} 18. Rxb7
{[%clk 0:02:19.2]} 18... Nxd4 {[%clk 0:02:27]} 19. cxd4 {[%clk 0:02:19.3]} 19...
Rab8 {[%clk 0:02:26.2]} 20. Rxb8 {[%clk 0:02:09.2]} 20... Rxb8 {[%clk
0:02:27.1]} 21. Bxe7 {[%clk 0:02:08.3]} 21... Rb1+ {[%clk 0:02:24]} 22. Bf1
{[%clk 0:02:08.5]} 22... Ra1 {[%clk 0:02:24.7]} 23. Bc5 {[%clk 0:02:02.8]} 23...
Rxa2 {[%clk 0:02:23.9]} 24. Bc4 {[%clk 0:02:01.2]} 24... Ra1+ {[%clk 0:02:23.1]}
25. Kg2 {[%clk 0:02:01.2]} 25... Bf8 {[%clk 0:02:23.8]} 26. Bxf8 {[%clk
0:01:56.9]} 26... Kxf8 {[%clk 0:02:24.7]} 27. Kf3 {[%clk 0:01:57.6]} 27... f5
{[%clk 0:02:15.9]} 28. Kf4 {[%clk 0:01:56.5]} 28... Rc1 {[%clk 0:02:15.8]} 29.
Ba6 {[%clk 0:01:55.5]} 29... Rc2 {[%clk 0:02:15.4]} 30. f3 {[%clk 0:01:54.8]}
30... Rxh2 {[%clk 0:02:14.8]} 31. e4 {[%clk 0:01:53.1]} 31... Ra2 {[%clk
0:02:09.5]} 32. Bb7 {[%clk 0:01:48.1]} 32... Ra4 {[%clk 0:02:03.9]} 33. d5
{[%clk 0:01:46.1]} 33... fxe4 {[%clk 0:01:29.7]} 34. fxe4 {[%clk 0:01:44.9]}
34... Ke7 {[%clk 0:01:28.4]} 35. Ke5 {[%clk 0:01:40]} 35... Rb4 {[%clk
0:01:18.2]} 36. Bc6 {[%clk 0:01:39.3]} 36... a5 {[%clk 0:01:17.5]} 37. d6+
{[%clk 0:01:38.1]} 37... Kd8 {[%clk 0:01:17.9]} 38. Ke6 {[%clk 0:01:36]} 38...
a4 {[%clk 0:01:16.8]} 39. e5 {[%clk 0:01:35.9]} 39... a3 {[%clk 0:01:17]} 40.
Bd5 {[%clk 0:01:34.1]} 40... Rd4 {[%clk 0:01:10]} 41. Bb3 {[%clk 0:01:30.2]}
41... Rd2 {[%clk 0:01:09.1]} 42. Kf7 {[%clk 0:01:24.8]} 42... Rf2+ {[%clk
0:01:09]} 43. Kg7 {[%clk 0:01:21.3]} 43... a2 {[%clk 0:01:09.3]} 44. Bxa2 {[%clk
0:01:19.1]} 44... Rxa2 {[%clk 0:01:09.8]} 45. e6 {[%clk 0:01:18.2]} 45... Rf2
{[%clk 0:01:06.3]} 46. g4 {[%clk 0:01:13.7]} 46... g5 {[%clk 0:01:02.8]} 0-1

[Event "*** SCC Grand Prix: Titled Tuesday Blitz"]
[Site "Chess.com"]
[Date "2020.10.13"]
[Round "7"]
[White "Chamal_Gedgafov"]
[Black "Region_07"]
[Result "0-1"]
[WhiteElo "2159"]
[BlackElo "2320"]
[TimeControl "180+1"]
[EndTime "11:15:37 PDT"]
[Termination "Region_07 won by resignation"]

1. d4 {[%clk 0:03:00.9]} 1... c5 {[%clk 0:02:56.8]} 2. d5 {[%clk 0:03:00.2]}
2... e6 {[%clk 0:02:53.7]} 3. c4 {[%clk 0:02:59.8]} 3... exd5 {[%clk 0:02:48]}
4. cxd5 {[%clk 0:03:00.7]} 4... Nf6 {[%clk 0:02:47.8]} 5. Nc3 {[%clk 0:03:01.6]}
5... d6 {[%clk 0:02:46.3]} 6. e4 {[%clk 0:03:02.5]} 6... g6 {[%clk 0:02:45.6]}
7. Bd3 {[%clk 0:03:01.8]} 7... Bg7 {[%clk 0:02:45.4]} 8. Nge2 {[%clk 0:03:02.2]}
8... O-O {[%clk 0:02:45.5]} 9. O-O {[%clk 0:03:02.1]} 9... a6 {[%clk 0:02:43.7]}
10. a4 {[%clk 0:03:01.9]} 10... Nbd7 {[%clk 0:02:38.9]} 11. h3 {[%clk
0:03:01.4]} 11... Re8 {[%clk 0:02:38.1]} 12. Ng3 {[%clk 0:03:01.4]} 12... Ne5
{[%clk 0:02:36.3]} 13. Bc2 {[%clk 0:03:00.7]} 13... Rb8 {[%clk 0:02:29.5]} 14.
f4 {[%clk 0:02:59.5]} 14... Ned7 {[%clk 0:02:29.4]} 15. Bd3 {[%clk 0:02:48.6]}
15... Qc7 {[%clk 0:02:19.4]} 16. Be3 {[%clk 0:02:43.1]} 16... c4 {[%clk
0:02:17.2]} 17. Bc2 {[%clk 0:02:42.5]} 17... b5 {[%clk 0:02:17.3]} 18. axb5
{[%clk 0:02:43]} 18... axb5 {[%clk 0:02:18.1]} 19. Ra7 {[%clk 0:02:42.2]} 19...
Qd8 {[%clk 0:02:08.1]} 20. Qf3 {[%clk 0:02:28.4]} 20... b4 {[%clk 0:02:06.5]}
21. Na4 {[%clk 0:02:27.3]} 21... Rb7 {[%clk 0:01:46.4]} 22. Ra8 {[%clk
0:02:19.7]} 22... Rb8 {[%clk 0:01:43.1]} 23. Rxb8 {[%clk 0:02:07.2]} 23... Nxb8
{[%clk 0:01:44]} 24. Kh1 {[%clk 0:02:07.4]} 24... Qa5 {[%clk 0:01:27.1]} 25. f5
{[%clk 0:01:39.1]} 25... b3 {[%clk 0:01:21.7]} 26. Bb1 {[%clk 0:01:38.6]} 26...
Qxa4 {[%clk 0:01:21.1]} 27. Bd4 {[%clk 0:01:34.2]} 27... Nbd7 {[%clk 0:01:19.4]}
28. fxg6 {[%clk 0:01:28.2]} 28... hxg6 {[%clk 0:01:20.3]} 29. Qf4 {[%clk
0:01:21]} 29... Ne5 {[%clk 0:01:15.4]} 30. Ne2 {[%clk 0:01:08.9]} 30... Nh5
{[%clk 0:01:07.3]} 31. Qh4 {[%clk 0:00:59.8]} 31... Qd7 {[%clk 0:01:06.6]} 32.
g4 {[%clk 0:00:57.7]} 32... Nxg4 {[%clk 0:01:02.4]} 33. hxg4 {[%clk 0:00:56.5]}
33... Qxg4 {[%clk 0:01:01.4]} 34. Qxg4 {[%clk 0:00:50.8]} 34... Bxg4 {[%clk
0:01:02.3]} 35. Bxg7 {[%clk 0:00:45.4]} 35... Bxe2 {[%clk 0:01:02]} 36. Rf2
{[%clk 0:00:45.4]} 36... Kxg7 {[%clk 0:01:01.5]} 37. Rxe2 {[%clk 0:00:45]} 37...
Ng3+ {[%clk 0:01:01.7]} 0-1